{"text_format":"1","workbook":"xlsx","n_sheets":3,"sheets":["Eingabe","Übersicht","Anmeldebogen"],"not_rendered":{"charts":4,"images":2,"macros":1,"external_links":0,"defined_names":3,"comments":0,"pivot_tables":0},"unopened":[],"bounds":{"document_bytes":16777216,"sheet_cells":100000,"rows_first":2000,"rows_last":500,"rows_between":2000,"halvings":0,"cell_chars":16384,"cell_head_chars":4096},"cells_cut":0,"cells_raw":0,"read":"whole","date_system":"1900"}

{"sheet":"Eingabe","index":0,"n_rows":65,"n_cols":16,"rows_kept":65,"cut":false,"hidden":false,"merged":[]}
[null,null,"Ludwigsgymnasium Straubing"]
[null,null,"Der Staatliche Schulpsychologe",null,null,null,null,null,null,null,null,null,0,"ja"]
[null,null,"Dr. Benedikt Wisniewski",null,null,null,null,null,null,null,null,null,1,"nein"]
[null,null,null,null,null,null,null,null,null,null,null,null,2,"[--]"]
[null,"Elektronischer Anamnesebogen",null,null,null,null,null,null,null,null,null,null,3,1,"Schulleistungsprobleme"]
[null,null,null,null,null,null,null,null,null,null,null,null,4,2,"Lese-Rechtschreibprobleme"]
[null,null,null,null,null,null,null,null,null,null,"Ludwigsgymnasium","J.-Turmaier-Gym.",5,3,"Prüfungsangst"]
[null,null,null,null,null,null,null,null,null,null,null,null,6,4,"Schulangst"]
[null,"Name:",null,null,"Vorname:",null,null,null,null,null,null,null,7,5,"Motivationsprobleme"]
[null,null,null,null,null,null,null,"Telefon",null,null,null,null,8,6,"Arbeitsverhalten"]
[null,"Geburtsdatum:",null,null,"Adresse:",null,null,"privat:",null,null,null,null,9,null,"Mobbing/Bullying"]
[null,"Klassenstufe:",null,null,null,null,null,"dienstlich:",null,null,null,null,10,null,"familiäre Konflikte"]
[null,"Schule:",null,null,null,null,null,"mobil:",null,null,null,null,11,null,"Verhaltensauffälligkeiten"]
[null,null,null,null,null,null,null,"E-Mail:",null,null,null,null,12,null,"Konzentrationsprobleme"]
[null,null,null,null,null,null,null,null,null,null,null,"Vater","alleinerziehend",null,"Krisensituation"]
[null,"Erz.berechtigte:",null,null,"familiäre",null,null,null,null,null,null,"Mutter","alleinerziehend mit Partner",null,"Erziehungsschwierigkeiten"]
[null,null,null,null,"Besonderheiten:",null,null,null,"Anzahl der Geschwister:",null,null,"Vater & Mutter","Eltern getrennt",null,"anderer"]
[null,null,null,null,null,null,null,null,null,null,null,"andere Person"]
[null,null,null,null,null,null,null,null,null,null,null,null,"Eltern geschieden"]
[null,"Sonstiges:",null,null,"Beratungsanlass:",null,null,"Datum:",null,null,null,null,"Migrationshintergrund"]
[null,null,null,null,null,null,null,null,null,null,null,"Vater&Mutter","Adoptivkind"]
[null,null,null,null,null,null,null,null,null,null,null,null,"Pflegekind"]
[null,null,null,null,null,null,null,null,null,null,null,"andere Person","Elternteil verstorben"]
[null,"Notensituation:",null,null,null,null,null,null,null,null,null,null,"verwaist"]
[null,null,null,null,null,null,null,null,null,null,null,null,"Erziehungsbeistand"]
[null,"Anzahl der Fächer mit aktuellem Notenstand",null,null,null,"aktuelle Fachnoten:",null,null,null,null,null,null,"andere",null," "]
[null,"schlechter als Note 4",null,null,null,"Deutsch",null,null,"Mathematik"]
[null,null,null,null,null,"Englisch",null,null,"Physik",null,null,null,"Gesamt","Sprachen","Naturwissenschaften"]
[null,"Wurden bereits andere Jahrgangsstufen",null,null,null,"Latein",null,null,"Chemie",null,null,null,{"$f":" TRUNC(AVERAGE(G27,G28,G29,G30,J27,J28,J29),2)","v":{"$error":"#DIV/0!"}},{"$f":" TRUNC(AVERAGE(G27,G28,G29,G30),2)","v":{"$error":"#DIV/0!"}},{"$f":" TRUNC(AVERAGE(J27,J28,J29),2)","v":{"$error":"#DIV/0!"}}]
[null,"wiederholt?",null,null,null,"Französisch",null,null,null,null,null,null,{"$f":" IF($D$30=\"ja\",1,0)","v":0},{"$f":" IF($D$31=$C$12,1,0)","v":1},{"$f":" IF($C$12-$D$31<2,1,0)","v":1},{"$f":"IF($D$32>0,1,0)","v":0}]
[null,"Wenn ja, welche?",null,null,null,null,null,null,null,null,null,null,{"$f":" IF(SUM($M$30:$P$30)>1,\"nicht möglich\", \"möglich\")","v":"nicht möglich"}]
[null,null,null,null,null,null,null,null,null,null,null,null,{"$f":" AVERAGE($G$27:$G$30)-AVERAGE($J$27:$J$29)","v":{"$error":"#DIV/0!"}},{"$f":"IF(M32<0,-M32,M32)","v":{"$error":"#DIV/0!"}},{"$f":" IF(N32>2, \"Diskrepanz\", \"keine Diskrepanz\")","v":{"$error":"#DIV/0!"}}]
[null,"Anzahl der Zeugnisnoten schlechter als 4",null,null,null,"Sind die mündlichen Noten ",null,null,"In wie vielen Fächern"]
[null,"im Vorjahr",null,null,null,"allgemein besser als die",null,null,"ist die Note seit dem ",null,null,null,{"$f":" ($D$27-$D$34)*$J$35","v":0},{"$f":"IF($M$34>15,\"sehr stark absteigend\",IF($M$34>10,\"stark absteigend\",IF($M$34>3,\"absteigend\",\"stabil\")))","v":"stabil"}]
[null,null,null,null,null,"Schriftlichen?",null,null,"Vorjahr abgesunken?"]
[]
[]
[null,null,null,null,null,null,null,null,null,null,null,null,"motorische Unruhe und Unkonzentriertheit","Ängstlichkeit und Niedergeschlagenheit","Aggression und opp. Verhalten","Antriebsschwäche"]
[null,"Verhalten allgemein",null,null,null,null,null,null,null,null,null,{"$f":"COUNTIF(J47,\"ja\")","v":0},{"$f":" COUNTIF($D$43,\"ja\")","v":0},{"$f":" COUNTIF($G$45,\"ja\")","v":0},{"$f":" COUNTIF($J$43,\"ja\")","v":0},{"$f":" SUM($L$39:$O$39)+0.1","v":0.1}]
[null,null,null,null,null,null,null,null,null,null,null,{"$f":" COUNTIF(D47,\"ja\")","v":0},{"$f":" COUNTIF($D$44,\"ja\")","v":0},{"$f":" COUNTIF($G44,\"ja\")","v":0},{"$f":" COUNTIF($J$45,\"ja\")","v":0},{"$f":" SUM($L$40:$O$40)+0.1","v":0.1}]
[null,"Kind ist zu Hause oft",null,null,null,"Kind ist vor der Schule meist",null,null,"Lehrer beschreiben das Kind als",null,null,{"$f":" COUNTIF(D46,\"ja\")","v":0},{"$f":" COUNTIF($D$45,\"ja\")","v":0},{"$f":" COUNTIF($J$46,\"ja\")","v":0},{"$f":" COUNTIF($J$44,\"ja\")","v":0},{"$f":" SUM($L$41:$O$41)+0.1","v":0.1}]
[null,null,"müde, erschöpft",null,null,"fröhlich",null,null,"ruhig und zurückhaltend",null,null,{"$f":" COUNTIF(J48,\"ja\")","v":0},{"$f":" COUNTIF($D$42,\"ja\")","v":0},{"$f":" COUNTIF($J$42,\"ja\")","v":0},{"$f":" COUNTIF($G$43,\"ja\")","v":0},{"$f":" SUM($L$42:$O$42)+0.1","v":0.1}]
[null,null,"motorisch unruhig",null,null,"müde, verträumt",null,null,"unkonzentriert"]
[null,null,"depressiv, niedergeschlagen",null,null,"aufgeregt",null,null,"aufsässig",null,null,null,{"$f":" $G$48/$C$12","v":{"$error":"#DIV/0!"}},{"$f":"IF($M$44>0.7,\"extrem hohe Zahl an Ordnungsmaßnahmen\",IF($M$44>0.49,\"sehr hohe Zahl an Ordnungsmaßnahmen\",IF($M$44>0.24,\"hohe Zahl an Ordnungsmaßnahmen\",\" \")))","v":{"$error":"#DIV/0!"}}]
[null,null,"aggressiv",null,null,"hektisch",null,null,"ängstlich"]
[null,null,"trotzig",null,null,null,null,null,"aggressiv"]
[null,null,"besorgt",null,null,"Anzahl von Verweisen in der ",null,null,"hyperaktiv"]
[null,null,null,null,null,"Schulzeit bisher:",null,null,"wenig beteiligt"]
[]
[]
[null,null,null,null,null,null,null,null,null,null,null,null,"< 30 Min"]
[null,"Lern- und Arbeitsverhalten",null,null,null,null,null,null,null,null,null,null,"< 60 Min"]
[null,null,null,null,null,null,null,null,null,null,null,null,"< 90 Min"]
[null,"Hausaufgaben",null,null,null,"benötigte Zeit täglich ",null,null,"Lernbedingungen",null,null,null,"> 90 Min"]
[null,"werden zuverlässig erledigt",null,null,null,"für schulische Tätigkeiten insges.",{"$f":" SUM(G56:G59)","v":0},"Min","aufgeräumter Arbeitsplatz"]
[null,"werden selbstständig erledigt",null,null,null,"für schriftliche Hausaufgaben",null,"Min","ungestörter Arbeitsplatz"]
[null,"werden zügig erledigt",null,null,null,"für mündliche Vorbereitung",null,"Min","Arbeitsplan ",null,null,null,{"$f":" 0.1+(COUNTIF(D55:D57,\"ja\"))*5","v":0.1},"Qualität der Hausaufgabensituation"]
[null,"werden von den Eltern auf Vollständigkeit geprüft",null,null,null,"für Pausen",null,"Min","festgelegte Lernzeit",null,null,null,{"$f":"0.1+ 3*(COUNTIF(J55:J59,\"ja\"))","v":0.1},"Qualität der Lernbedingungen"]
[null,"werden von den Eltern auf Richtigkeit geprüft",null,null,null,"für andere Unterbrechungen",null,"Min","Selbstkontrolle",null,null,null,{"$f":" 0.1+5*(COUNTIF(D58:D61, \"ja\"))","v":0.1},"Elternkontrolle"]
[null,"regelmäßiges Abfragen durch die"]
[null,"Eltern?"]
[]
[]
[]
[null,"Bitte nach dem Ausfüllen mit diesem Button drucken (Makros müssen aktiviert sein). Es werden 3 Seiten gedruckt."]

{"sheet":"Übersicht","index":1,"n_rows":67,"n_cols":16,"rows_kept":67,"cut":false,"hidden":false,"merged":[]}
[]
[null,null,"Ludwigsgymnasium Straubing"]
[null,null,"Der Staatliche Schulpsychologe"]
[]
[]
[null,"Elektronischer Anamnesebogen - Kurzübersicht"]
[null," "]
[null,null,null,null,null,null,null,null,null,null,null,"Ludwigsgymnasium"]
[null,"Schüler:",{"$f":" Eingabe!$F$9","v":0},{"$f":" Eingabe!$C$9","v":0},",","geboren am",{"$f":"Eingabe!C11","v":"00:00:00"},",","Klasse",{"$f":" Eingabe!C12","v":0},null,"Beratungsanlass:",null,{"$f":"Eingabe!F20","v":0}]
[]
[null,"Familiäre Situation"]
[]
[null,"Erziehungsberechtigte:",null,{"$f":" Eingabe!$C$16","v":0}]
[]
[null,"Familiäre Besonderheiten:",null,{"$f":" Eingabe!F17","v":0}]
[null,null,null,{"$f":" Eingabe!$F$18","v":0}]
[]
[]
[]
[null,"Notensituation",null,null,null,null,null,null,null,null,null,null,"Lernverhalten"]
[]
[null,null,null,null,null,null,null,"Vorrücken",null,{"$f":"IF(Eingabe!$D$27>1,\"sehr gefährdet\",IF(Eingabe!$D$27>0,\"gefährdet\",\"nicht gefährdet\"))","v":"nicht gefährdet"},null,null,"Lernzeit insgesamt:",null,{"$f":"Eingabe!G55","v":0},"Minuten"]
[null,null,null,null,null,null,null,"Wiederholen:",null,{"$f":" Eingabe!$M$31","v":"nicht möglich"}]
[null,null,null,null,null,null,null,"Fächervergleich:",null,{"$f":" Eingabe!$O$32","v":{"$error":"#DIV/0!"}}]
[null,null,null,null,null,null,null,"Leistungsverlauf:",null,{"$f":" Eingabe!N34","v":"stabil"}]
[]
[]
[]
[]
[]
[]
[]
[]
[]
[]
[]
[]
[]
[]
[]
[]
[null,"Verhalten allgemein"]
[]
[]
[]
[]
[]
[]
[]
[]
[]
[]
[]
[]
[]
[]
[]
[]
[]
[]
[]
[]
[]
[]
[]
[]
[null,null,{"$f":" Eingabe!$N$44","v":{"$error":"#DIV/0!"}}]

{"sheet":"Anmeldebogen","index":2,"n_rows":52,"n_cols":13,"rows_kept":52,"cut":false,"hidden":false,"merged":[]}
[]
[]
[]
[]
[]
[]
[]
[]
[null,null,null,"Anmeldebogen"]
[]
[null,null,null,null,null,null,null,null,null,null,null,null,"Ludwigsgymnasium"]
[]
[null,null,null,"Name:",{"$f":" Eingabe!C9","v":0},null,"Vorname:",{"$f":" Eingabe!F9","v":0}]
[null,null,null,null,null,null,null,null,null,"Telefon"]
[null,null,null,"Geburtsdatum:",{"$f":"Eingabe!C11","v":"00:00:00"},null,"Adresse:",{"$f":" Eingabe!F11","v":0},null,"privat:",{"$f":"Eingabe!I11","v":0}]
[null,null,null,"Klassenstufe:",{"$f":"Eingabe!C12","v":0},null,null,{"$f":" Eingabe!F12","v":0},null,"dienstlich:",{"$f":"Eingabe!I12","v":0}]
[null,null,null,"Schule:",{"$f":"Eingabe!C13","v":0},null,null,{"$f":" Eingabe!F13","v":0},null,"mobil:",{"$f":"Eingabe!I13","v":0}]
[null,null,null,null,null,null,null,{"$f":"Eingabe!F14","v":0},null,"E-Mail:",{"$f":"Eingabe!I14","v":0}]
[]
[null,null,null,"Erz.berechtigte:",{"$f":" Eingabe!C16","v":0},null,"familiäre"]
[null,null,null,null,null,null,"Besonderheiten:",{"$f":"Eingabe!F17","v":0},null,"Anzahl der Geschwister:",null,{"$f":"Eingabe!J17","v":0}]
[null,null,null,null,null,null,null,{"$f":"Eingabe!F18","v":0}]
[]
[null,null,null,"Sonstiges:",{"$f":" Eingabe!C20","v":0},null,null,null,null,"Datum:",{"$f":"  Eingabe!I20","v":"00:00:00"}]
[]
[]
[]
[null,null,null,"Ich entbinde den Schulpsychologen hiermit von seiner Schweigepflicht gegenüber "]
[null,null,null,"der Schulleitung",null,null,null,null,null,"o ja  o nein"]
[null,null,null,"der Klassenleitung",null,null,null,null,null,"o ja  o nein"]
[null,null,null,"allen Lehrkräften, die zur Diagnostik eine n Beitrag leisten können",null,null,null,null,null,"o ja  o nein"]
[null,null,null,"anderen Ansprechpartnern, nämlich ………………………………………………………………………………………………………..",null,null,null,null,null,"o ja  o nein"]
[]
[null,null,null,"Mit der Durchführung psychologischer Testverfahren bei meinem Kind bin ich   o  einverstanden   o nicht einverstanden"]
[]
[]
[null,null,null,"……………………………………………………………………………….                                              ……………………………………………………………………………………………………………..",null,null,"…………………………………………………………………………………………………………………………."]
[null,null,null,"Datum",null,null,"Unterschrift"]
[]
[]
[null,null,null,"Vom Klienten geschilderte Problematik:",null,null,{"$f":" Eingabe!$F$20","v":0}]
[]
[null,null,null,"Vom Schulpsychologen festgestellte Problematik:"]
[]
[null,null,null,"Überweisung an:"]
[]
[]
[]
[]
[null,null,null,"Diagnostik"]
[]
[null,null,null,"Datum","Verfahren",null,null,"Bemerkungen"]